[Event "SixDays IM March 2024"]
[Site "Budapest"]
[Date "2024.03.31"]
[Round "2.5"]
[White "Radzimski, Antoni"]
[Black "Advaitt Srikant Koduri"]
[Result "1-0"]
[ECO "B76"]
[WhiteElo "2197"]
[BlackElo "2125"]
[Annotator "RC"]
[PlyCount "75"]
[EventDate "2024.03.26"]
[EventType "tourn"]
[EventCountry "HUN"]
[SourceTitle "playchess.com"]
[Source "ChessBase"]
[SourceQuality "1"]
[TimeControl "5400+30"]

1. e4 {[%emt 0:00:02]} c5 {[%emt 0:01:24]} 2. Nf3 {[%emt 0:00:08]} d6 {[%emt 0:00:05]} 3. d4 {[%emt 0:00:05]} cxd4 {[%emt 0:00:05]} 4. Nxd4 {[%emt 0:00:03]} Nf6 {[%emt 0:00:11]} 5. Nc3 {[%emt 0:00:04]} g6 {[%emt 0:00:10]} 6. Be3 {[%emt 0:00:03]} Bg7 {[%emt 0:00:09]} 7. f3 {[%emt 0:00:01]} O-O {[%emt 0:00:11]} 8. Qd2 {[%emt 0:00:03]} Nc6 {[%emt 0:00:07]} 9. O-O-O {[%emt 0:00:05]} d5 {[%emt 0:00:04]} 10. exd5 {[%emt 0:00:08]} Nxd5 {[%emt 0:00:05]} 11. Nxc6 {[%emt 0:00:04]} bxc6 {[%emt 0:00:07]} 12. Bd4 {[%emt 0:00:01]} Bxd4 {[%emt 0:00:10]} 13. Qxd4 {[%emt 0:00:05]} Qb6 {[%emt 0:00:08]} 14. Na4 {[%emt 0:00:03]} Qc7 {[%emt 0:00:06]} 15. Bc4 {[%emt 0:00:11]} Rd8 {[%emt 0:01:09]} 16. Nc5 {[%emt 0:00:15]} Bf5 {[%emt 0:00:10]} 17. Bb3 {[%emt 0:00:23]} Nf4 {[%emt 0:00:14]} 18. Qf2 {[%emt 0:00:47]} Rxd1+ {[%emt 0:00:11]} 19. Rxd1 {[%emt 0:00:04]} Rd8 {[%emt 0:00:07]} 20. Re1 {[%emt 0:04:04]} Nd5 {[%emt 0:06:37]} 21. g3 {[%emt 0:03:36]} h5 {[%emt 0:14:54]} 22. Qe2 {[%emt 0:08:41]} a5 {[%emt 0:16:14]} 23. a3 {[%emt 0:13:24]} Qa7 {[%emt 0:15:19]} 24. Qc4 {[%emt 0:03:44]} e6 {[%emt 0:09:20]} 25. Kb1 {[%emt 0:03:53]} Nb6 {[%emt 0:06:16]} 26. Qh4 {[%emt 0:04:46]} Qc7 {[%emt 0:04:53]} 27. g4 {[%emt 0:03:16]} hxg4 {[%emt 0:04:18]} 28. fxg4 {[%emt 0:04:17]} Rd4 {[%emt 0:01:08]} 29. Qf6 {[%emt 0:03:26]} Rxg4 {[%emt 0:08:41]} 30. Nxe6 {[%emt 0:00:38]} fxe6 {[%emt 0:11:06]} 31. Bxe6+ {[%emt 0:00:16]} Kh7 {[%emt 0:01:00]} 32. Bxf5 {[%emt 0:01:11]} Nd5 {[%emt 0:00:28]} 33. Qe6 {[%emt 0:08:36]} gxf5 {[%emt 0:00:37]} 34. Qxf5+ {[%emt 0:00:04]} Rg6 {[%emt 0:00:07]} 35. Re6 {[%emt 0:00:19]} Qg7 {[%emt 0:01:34]} 36. h4 {[%emt 0:00:27]} Ne7 {[%emt 0:00:15]} 37. Qe4 {[%emt 0:00:07]} Qf7 {[%emt 0:00:42]} 38. Rxe7 {[%emt 0:00:17]} 1-0

[Event "SixDays IM March 2024"]
[Site "Budapest"]
[Date "2024.03.31"]
[Round "3.1"]
[White "Advaitt Srikant Koduri"]
[Black "Hesham, Abdelrahman"]
[Result "0-1"]
[ECO "D02"]
[WhiteElo "2125"]
[BlackElo "2366"]
[Annotator "RC"]
[PlyCount "100"]
[EventDate "2024.03.26"]
[EventType "tourn"]
[EventCountry "HUN"]
[SourceTitle "playchess.com"]
[Source "ChessBase"]
[SourceQuality "1"]
[TimeControl "5400+30"]

1. Nf3 {[%emt 0:00:04]} d5 {[%emt 0:10:42]} 2. d4 {[%emt 0:00:08]} Nf6 {[%emt 0:00:11]} 3. Bf4 {[%emt 0:00:04]} c5 {[%emt 0:00:13]} 4. c3 {[%emt 0:00:05]} Nc6 {[%emt 0:00:08]} 5. e3 {[%emt 0:00:05]} Nh5 {[%emt 0:00:10]} 6. Bg3 {[%emt 0:01:40]} Qb6 {[%emt 0:10:11]} 7. Qc2 {[%emt 0:01:38]} g6 {[%emt 0:05:14]} 8. Nbd2 {[%emt 0:03:23]} Bf5 {[%emt 0:02:41]} 9. Qb3 {[%emt 0:07:10]} c4 {[%emt 0:00:42]} 10. Qxb6 {[%emt 0:00:40]} axb6 {[%emt 0:00:03]} 11. a3 {[%emt 0:00:08]} b5 {[%emt 0:00:06]} 12. Rc1 {[%emt 0:00:04]} f6 {[%emt 0:00:44]} 13. Nh4 {[%emt 0:04:57]} Be6 {[%emt 0:02:29]} 14. Be2 {[%emt 0:10:39]} Ng7 {[%emt 0:00:19]} 15. h3 {[%emt 0:05:30]} g5 {[%emt 0:02:45]} 16. Nhf3 {[%emt 0:00:12]} Nf5 {[%emt 0:01:32]} 17. Bh2 {[%emt 0:01:25]} h5 {[%emt 0:00:07]} 18. O-O {[%emt 0:14:40]} g4 {[%emt 0:03:49]} 19. hxg4 {[%emt 0:01:50]} hxg4 {[%emt 0:00:06]} 20. Ne1 {[%emt 0:00:21]} Kd7 {[%emt 0:06:19]} 21. Nc2 {[%emt 0:08:57]} Bh6 {[%emt 0:06:30]} 22. Rfe1 {[%emt 0:08:54]} Rag8 {[%emt 0:12:53]} 23. Nf1 {[%emt 0:01:01]} Rh7 {[%emt 0:08:08]} 24. Rcd1 {[%emt 0:02:25]} Nd6 {[%emt 0:09:55]} 25. Ra1 {[%emt 0:09:27]} Bf5 {[%emt 0:02:49]} 26. Nb4 {[%emt 0:01:36]} Nxb4 {[%emt 0:00:09]} 27. axb4 {[%emt 0:00:10]} Rgh8 {[%emt 0:00:38]} 28. Bxd6 {[%emt 0:02:32]} Bf4 {[%emt 0:06:45]} 29. Ng3 {[%emt 0:02:08]} Bxd6 {[%emt 0:00:25]} 30. f4 {[%emt 0:05:25]} gxf3 {[%emt 0:00:44]} 31. Nxf5 {[%emt 0:00:16]} Bh2+ {[%emt 0:00:14]} 32. Kf2 {[%emt 0:02:48]} fxe2 {[%emt 0:00:06]} 33. Rxe2 {[%emt 0:02:10]} Rg8 {[%emt 0:01:39]} 34. Ra7 {[%emt 0:02:10]} Ke6 {[%emt 0:03:07]} 35. e4 {[%emt 0:02:20]} dxe4 {[%emt 0:00:09]} 36. Nxe7 {[%emt 0:00:45]} Bg3+ {[%emt 0:03:58]} 37. Kg1 {[%emt 0:00:28]} Rxe7 {[%emt 0:01:06]} 38. Rxe4+ {[%emt 0:00:09]} Kf7 {[%emt 0:00:04]} 39. Rxe7+ {[%emt 0:00:16]} Kxe7 {[%emt 0:00:05]} 40. Rxb7+ {[%emt 0:00:11]} Ke6 {[%emt 0:00:50]} 41. Rxb5 {[%emt 0:00:20]} Rg4 {[%emt 0:00:32]} 42. Ra5 {[%emt 0:00:30]} Re4 {[%emt 0:00:06]} 43. Ra1 {[%emt 0:00:31]} Re2 {[%emt 0:00:56]} 44. Rb1 {[%emt 0:00:30]} Kd5 {[%emt 0:00:49]} 45. Kf1 {[%emt 0:00:20]} Rf2+ {[%emt 0:00:03]} 46. Kg1 {[%emt 0:00:04]} Rd2 {[%emt 0:01:04]} 47. Rf1 {[%emt 0:01:24]} Rxb2 {[%emt 0:00:29]} 48. Rxf6 {[%emt 0:00:35]} Rc2 {[%emt 0:00:05]} 49. Kf1 {[%emt 0:01:09]} Rxc3 {[%emt 0:00:13]} 50. Rg6 {[%emt 0:00:24]} Re3 {[%emt 0:00:20]} 0-1

[Event "SixDays IM March 2024"]
[Site "Budapest"]
[Date "2024.03.31"]
[Round "3.2"]
[White "Demeter, Dorina"]
[Black "Radzimski, Antoni"]
[Result "1/2-1/2"]
[ECO "A17"]
[WhiteElo "2296"]
[BlackElo "2197"]
[Annotator "RC"]
[PlyCount "72"]
[EventDate "2024.03.26"]
[EventType "tourn"]
[EventCountry "HUN"]
[SourceTitle "playchess.com"]
[Source "ChessBase"]
[SourceQuality "1"]
[TimeControl "5400+30"]

1. Nf3 {[%emt 0:00:05]} Nf6 {[%emt 0:00:09]} 2. c4 {[%emt 0:00:31]} e6 {[%emt 0:00:05]} 3. Nc3 {[%emt 0:00:28]} Bb4 {[%emt 0:00:11]} 4. Qc2 {[%emt 0:00:47]} O-O {[%emt 0:00:20]} 5. a3 {[%emt 0:01:08]} Bxc3 {[%emt 0:00:06]} 6. Qxc3 {[%emt 0:00:24]} d6 {[%emt 0:00:07]} 7. d4 {[%emt 0:00:28]} c5 {[%emt 0:05:05]} 8. dxc5 {[%emt 0:05:18]} dxc5 {[%emt 0:00:32]} 9. Bg5 {[%emt 0:00:08]} Nbd7 {[%emt 0:06:10]} 10. Qc2 {[%emt 0:04:54]} Qa5+ {[%emt 0:04:36]} 11. Bd2 {[%emt 0:01:29]} Qc7 {[%emt 0:00:35]} 12. Bc3 {[%emt 0:01:50]} b6 {[%emt 0:02:20]} 13. e4 {[%emt 0:18:52]} Bb7 {[%emt 0:06:21]} 14. Bd3 {[%emt 0:00:24]} e5 {[%emt 0:01:26]} 15. O-O {[%emt 0:02:24]} Rae8 {[%emt 0:03:22]} 16. Nh4 {[%emt 0:03:07]} Nb8 {[%emt 0:19:00]} 17. Nf5 {[%emt 0:09:41]} Nc6 {[%emt 0:03:46]} 18. Qd2 {[%emt 0:05:46]} Ne7 {[%emt 0:06:06]} 19. Qg5 {[%emt 0:07:35]} Nxf5 {[%emt 0:03:46]} 20. Qxf5 {[%emt 0:00:06]} Qd6 {[%emt 0:03:43]} 21. Rad1 {[%emt 0:02:57]} Qe6 {[%emt 0:05:46]} 22. Qxe6 {[%emt 0:02:28]} Rxe6 {[%emt 0:00:08]} 23. f3 {[%emt 0:00:28]} Rc8 {[%emt 0:03:23]} 24. Rd2 {[%emt 0:03:17]} Kf8 {[%emt 0:01:07]} 25. Rfd1 {[%emt 0:02:25]} Rd8 {[%emt 0:04:07]} 26. Bc2 {[%emt 0:02:11]} Rxd2 {[%emt 0:00:08]} 27. Rxd2 {[%emt 0:00:02]} Ke7 {[%emt 0:00:55]} 28. Ba4 {[%emt 0:02:09]} Bc8 {[%emt 0:01:51]} 29. b4 {[%emt 0:03:18]} Bd7 {[%emt 0:00:55]} 30. Bd1 {[%emt 0:00:15]} Rd6 {[%emt 0:01:40]} 31. Rxd6 {[%emt 0:01:16]} Kxd6 {[%emt 0:00:24]} 32. f4 {[%emt 0:00:32]} Nxe4 {[%emt 0:00:39]} 33. Bxe5+ {[%emt 0:00:13]} Ke7 {[%emt 0:00:30]} 34. Bb8 {[%emt 0:10:11]} cxb4 {[%emt 0:02:03]} 35. axb4 {[%emt 0:00:21]} a5 {[%emt 0:01:34]} 36. Bc2 {[%emt 0:02:24]} Nd2 {[%emt 0:06:25]} 1/2-1/2

[Event "SixDays IM March 2024"]
[Site "Budapest"]
[Date "2024.03.31"]
[Round "3.3"]
[White "Gu, Crystal Jiuzhou"]
[Black "Horvath, David"]
[Result "0-1"]
[ECO "B06"]
[WhiteElo "2059"]
[BlackElo "2330"]
[Annotator "RC"]
[PlyCount "98"]
[EventDate "2024.03.26"]
[EventType "tourn"]
[EventCountry "HUN"]
[SourceTitle "playchess.com"]
[Source "ChessBase"]
[SourceQuality "1"]
[TimeControl "5400+30"]

1. e4 {[%emt 0:03:51]} g6 {[%emt 0:00:08]} 2. d4 {[%emt 0:00:26]} Bg7 {[%emt 0:00:05]} 3. Nf3 {[%emt 0:00:51]} c6 {[%emt 0:00:10]} 4. c3 {[%emt 0:02:03]} d5 {[%emt 0:00:29]} 5. exd5 {[%emt 0:03:54]} cxd5 {[%emt 0:03:01]} 6. Bd3 {[%emt 0:01:08]} Nc6 {[%emt 0:02:54]} 7. Bf4 {[%emt 0:01:02]} Nf6 {[%emt 0:03:03]} 8. Nbd2 {[%emt 0:00:51]} O-O {[%emt 0:02:35]} 9. O-O {[%emt 0:00:44]} Bf5 {[%emt 0:01:10]} 10. Bxf5 {[%emt 0:02:09]} gxf5 {[%emt 0:00:02]} 11. Ne5 {[%emt 0:00:16]} e6 {[%emt 0:04:47]} 12. Re1 {[%emt 0:05:21]} Ne4 {[%emt 0:17:19]} 13. Nxe4 {[%emt 0:16:47]} fxe4 {[%emt 0:09:15]} 14. Qh5 {[%emt 0:02:27]} Nxe5 {[%emt 0:10:32]} 15. dxe5 {[%emt 0:04:21]} f6 {[%emt 0:01:03]} 16. Bh6 {[%emt 0:04:45]} Qe7 {[%emt 0:21:34]} 17. Bxg7 {[%emt 0:12:26]} Kxg7 {[%emt 0:00:22]} 18. Re3 {[%emt 0:01:02]} f5 {[%emt 0:01:25]} 19. Rh3 {[%emt 0:03:36]} Kh8 {[%emt 0:00:06]} 20. Rd1 {[%emt 0:03:30]} Rac8 {[%emt 0:06:36]} 21. Rd4 {[%emt 0:08:28]} Qg7 {[%emt 0:08:27]} 22. Qh6 {[%emt 0:10:04]} Qxh6 {[%emt 0:01:12]} 23. Rxh6 {[%emt 0:00:02]} Rc6 {[%emt 0:00:11]} 24. c4 {[%emt 0:01:39]} Kg7 {[%emt 0:00:15]} 25. Rh3 {[%emt 0:02:31]} Rxc4 {[%emt 0:00:07]} 26. Rxc4 {[%emt 0:01:11]} dxc4 {[%emt 0:00:02]} 27. Rc3 {[%emt 0:00:08]} Rc8 {[%emt 0:03:45]} 28. f3 {[%emt 0:03:55]} exf3 {[%emt 0:01:04]} 29. gxf3 {[%emt 0:00:36]} f4 {[%emt 0:00:06]} 30. Rc2 {[%emt 0:01:24]} Kg6 {[%emt 0:00:43]} 31. Rd2 {[%emt 0:00:41]} Rc7 {[%emt 0:00:25]} 32. Kf2 {[%emt 0:01:25]} Kf5 {[%emt 0:00:05]} 33. Re2 {[%emt 0:00:11]} b5 {[%emt 0:00:09]} 34. a3 {[%emt 0:00:29]} Rc5 {[%emt 0:00:17]} 35. Rd2 {[%emt 0:00:53]} Rd5 {[%emt 0:00:08]} 36. Rc2 {[%emt 0:00:48]} Kxe5 {[%emt 0:00:20]} 37. Ke2 {[%emt 0:00:33]} Rd3 {[%emt 0:00:06]} 38. a4 {[%emt 0:00:22]} a6 {[%emt 0:00:08]} 39. axb5 {[%emt 0:00:39]} axb5 {[%emt 0:00:04]} 40. Kf2 {[%emt 0:00:11]} Kd4 {[%emt 0:00:08]} 41. Ke2 {[%emt 0:00:12]} e5 {[%emt 0:00:18]} 42. Rc1 {[%emt 0:00:08]} b4 {[%emt 0:00:17]} 43. Ra1 {[%emt 0:00:32]} Re3+ {[%emt 0:00:16]} 44. Kf2 {[%emt 0:00:13]} c3 {[%emt 0:00:08]} 45. bxc3+ {[%emt 0:00:48]} bxc3 {[%emt 0:00:08]} 46. Ra7 {[%emt 0:00:39]} c2 {[%emt 0:00:08]} 47. Rd7+ {[%emt 0:00:09]} Kc3 {[%emt 0:00:06]} 48. Rc7+ {[%emt 0:00:06]} Kd2 {[%emt 0:00:05]} 49. Rd7+ {[%emt 0:00:17]} Rd3 {[%emt 0:00:06]} 0-1

[Event "SixDays IM March 2024"]
[Site "Budapest"]
[Date "2024.03.31"]
[Round "3.4"]
[White "Toth-Goczo, Melinda"]
[Black "Miszler, Levente"]
[Result "1-0"]
[ECO "D25"]
[WhiteElo "2189"]
[BlackElo "2287"]
[Annotator "RC"]
[PlyCount "71"]
[EventDate "2024.03.26"]
[EventType "tourn"]
[EventCountry "HUN"]
[SourceTitle "playchess.com"]
[Source "ChessBase"]
[SourceQuality "1"]
[TimeControl "5400+30"]

1. d4 {[%emt 0:00:13]} d5 {[%emt 0:00:07]} 2. c4 {[%emt 0:00:07]} dxc4 {[%emt 0:00:06]} 3. Nf3 {[%emt 0:00:09]} Nf6 {[%emt 0:00:08]} 4. e3 {[%emt 0:00:40]} Bg4 {[%emt 0:00:08]} 5. Bxc4 {[%emt 0:00:16]} e6 {[%emt 0:00:09]} 6. h3 {[%emt 0:01:49]} Bh5 {[%emt 0:00:46]} 7. O-O {[%emt 0:03:09]} a6 {[%emt 0:00:38]} 8. Be2 {[%emt 0:02:12]} Nc6 {[%emt 0:01:49]} 9. b3 {[%emt 0:02:01]} Bd6 {[%emt 0:01:04]} 10. Bb2 {[%emt 0:00:33]} Qe7 {[%emt 0:00:48]} 11. Ne5 {[%emt 0:17:08]} Bxe2 {[%emt 0:09:59]} 12. Qxe2 {[%emt 0:00:18]} Bxe5 {[%emt 0:10:38]} 13. dxe5 {[%emt 0:00:06]} Nd7 {[%emt 0:00:05]} 14. Ba3 {[%emt 0:02:25]} Nb4 {[%emt 0:04:28]} 15. Qc4 {[%emt 0:11:49]} c5 {[%emt 0:03:43]} 16. Bxb4 {[%emt 0:21:37]} cxb4 {[%emt 0:00:16]} 17. Qc7 {[%emt 0:01:58]} Nc5 {[%emt 0:03:37]} 18. Qb6 {[%emt 0:02:17]} Nd3 {[%emt 0:02:20]} 19. Nd2 {[%emt 0:01:11]} O-O {[%emt 0:06:19]} 20. Nc4 {[%emt 0:01:22]} Rac8 {[%emt 0:08:32]} 21. Rad1 {[%emt 0:02:08]} Rc6 {[%emt 0:05:29]} 22. Qd4 {[%emt 0:00:40]} Nc5 {[%emt 0:03:41]} 23. Na5 {[%emt 0:00:56]} Rb6 {[%emt 0:02:31]} 24. Nc4 {[%emt 0:00:15]} Rc6 {[%emt 0:01:18]} 25. Na5 {[%emt 0:01:40]} Rb6 {[%emt 0:00:14]} 26. Rd2 {[%emt 0:09:00]} f6 {[%emt 0:09:49]} 27. Rc1 {[%emt 0:01:55]} Rb5 {[%emt 0:00:48]} 28. Nc4 {[%emt 0:00:15]} fxe5 {[%emt 0:00:22]} 29. Nxe5 {[%emt 0:00:57]} b6 {[%emt 0:03:20]} 30. f4 {[%emt 0:02:00]} Nb7 {[%emt 0:03:39]} 31. Qd7 {[%emt 0:00:55]} Qxd7 {[%emt 0:01:25]} 32. Nxd7 {[%emt 0:00:53]} Re8 {[%emt 0:00:12]} 33. Rc7 {[%emt 0:00:39]} Nd8 {[%emt 0:04:02]} 34. Rc8 {[%emt 0:01:27]} Rf5 {[%emt 0:03:42]} 35. Ne5 {[%emt 0:01:21]} Rff8 {[%emt 0:01:05]} 36. Rd7 {[%emt 0:00:08]} 1-0

[Event "SixDays IM March 2024"]
[Site "Budapest"]
[Date "2024.03.31"]
[Round "3.5"]
[White "Mouhamad, Joachim"]
[Black "Krizsany, Laszlo"]
[Result "1-0"]
[ECO "B11"]
[WhiteElo "2278"]
[BlackElo "2341"]
[Annotator "ChessBase"]
[PlyCount "51"]
[EventDate "2024.03.26"]
[EventType "tourn"]
[EventCountry "HUN"]
[SourceTitle "playchess.com"]
[Source "ChessBase"]
[SourceQuality "1"]
[TimeControl "5400+30"]

1. e4 {[%emt 0:00:11]} c6 {[%emt 0:00:08]} 2. Nf3 {[%emt 0:00:29]} d5 {[%emt 0:00:11]} 3. Nc3 {[%emt 0:00:08]} Bg4 {[%emt 0:00:42]} 4. h3 {[%emt 0:00:14]} Bh5 {[%emt 0:03:46]} 5. exd5 {[%emt 0:00:10]} cxd5 {[%emt 0:00:05]} 6. g4 {[%emt 0:00:56]} Bg6 {[%emt 0:00:06]} 7. Ne5 {[%emt 0:00:55]} Nc6 {[%emt 0:00:43]} 8. Bb5 {[%emt 0:00:20]} Rc8 {[%emt 0:01:37]} 9. d4 {[%emt 0:00:23]} e6 {[%emt 0:02:05]} 10. Qe2 {[%emt 0:00:22]} Nge7 {[%emt 0:01:41]} 11. h4 {[%emt 0:11:15]} a6 {[%emt 0:03:31]} 12. Nxc6 {[%emt 0:13:14]} Nxc6 {[%emt 0:00:17]} 13. Bxc6+ {[%emt 0:00:13]} Rxc6 {[%emt 0:00:06]} 14. h5 {[%emt 0:00:24]} Be4 {[%emt 0:07:35]} 15. f3 {[%emt 0:06:10]} Bb4 {[%emt 0:00:43]} 16. Kf1 {[%emt 0:15:23]} Bxc3 {[%emt 0:01:21]} 17. bxc3 {[%emt 0:03:18]} Rxc3 {[%emt 0:03:27]} 18. fxe4 {[%emt 0:00:26]} dxe4 {[%emt 0:00:28]} 19. Qxe4 {[%emt 0:03:31]} O-O {[%emt 0:00:57]} 20. Bd2 {[%emt 0:16:40]} Rc6 {[%emt 0:04:14]} 21. g5 {[%emt 0:00:26]} f5 {[%emt 0:29:20]} 22. Qe5 {[%emt 0:03:12]} Rxc2 {[%emt 0:04:05]} 23. h6 {[%emt 0:12:09]} Qd7 {[%emt 0:06:56]} 24. Rh2 {[%emt 0:03:27]} Rd8 {[%emt 0:03:13]} 25. g6 {[%emt 0:04:27]} Qc8 {[%emt 0:16:14]} 26. Qxg7# 1-0

[Event "SixDays IM March 2024"]
[Site "Budapest"]
[Date "2024.04.01"]
[Round "4.2"]
[White "Miszler, Levente"]
[Black "Mouhamad, Joachim"]
[Result "0-1"]
[ECO "E06"]
[WhiteElo "2287"]
[BlackElo "2278"]
[Annotator "RC"]
[PlyCount "132"]
[EventDate "2024.03.26"]
[EventType "tourn"]
[EventCountry "HUN"]
[SourceTitle "playchess.com"]
[Source "ChessBase"]
[SourceQuality "1"]
[TimeControl "5400+30"]

1. d4 {[%emt 0:00:03]} d5 {[%emt 0:00:37]} 2. c4 {[%emt 0:00:06]} e6 {[%emt 0:00:07]} 3. Nf3 {[%emt 0:00:07]} Nf6 {[%emt 0:00:34]} 4. g3 {[%emt 0:00:11]} Be7 {[%emt 0:00:07]} 5. Bg2 {[%emt 0:00:08]} O-O {[%emt 0:00:14]} 6. O-O {[%emt 0:00:10]} c6 {[%emt 0:00:07]} 7. Nc3 {[%emt 0:01:15]} b6 {[%emt 0:00:44]} 8. Ne5 {[%emt 0:05:18]} Nfd7 {[%emt 0:01:03]} 9. Nxd7 {[%emt 0:09:43]} Nxd7 {[%emt 0:04:58]} 10. cxd5 {[%emt 0:01:34]} cxd5 {[%emt 0:01:25]} 11. e4 {[%emt 0:02:12]} Nf6 {[%emt 0:07:33]} 12. e5 {[%emt 0:02:58]} Ne8 {[%emt 0:00:53]} 13. Be3 {[%emt 0:02:52]} Bd7 {[%emt 0:04:23]} 14. Qe2 {[%emt 0:05:23]} Nc7 {[%emt 0:07:39]} 15. Rfc1 {[%emt 0:05:12]} a5 {[%emt 0:06:32]} 16. Rc2 {[%emt 0:05:47]} b5 {[%emt 0:07:46]} 17. Rac1 {[%emt 0:02:31]} Ra7 {[%emt 0:10:29]} 18. Nb1 {[%emt 0:11:10]} b4 {[%emt 0:00:53]} 19. Bf1 {[%emt 0:02:43]} Ba4 {[%emt 0:01:14]} 20. b3 {[%emt 0:00:50]} Bd7 {[%emt 0:03:11]} 21. Qg4 {[%emt 0:02:25]} Kh8 {[%emt 0:00:56]} 22. Bd3 {[%emt 0:01:26]} a4 {[%emt 0:05:04]} 23. Nd2 {[%emt 0:03:40]} Bb5 {[%emt 0:10:31]} 24. Qe2 {[%emt 0:14:36]} axb3 {[%emt 0:00:06]} 25. Nxb3 {[%emt 0:00:49]} Bxd3 {[%emt 0:03:00]} 26. Qxd3 {[%emt 0:00:08]} Qb8 {[%emt 0:04:51]} 27. Bd2 {[%emt 0:03:42]} Nb5 {[%emt 0:08:23]} 28. Nc5 {[%emt 0:06:53]} Na3 {[%emt 0:04:17]} 29. Rb2 {[%emt 0:01:13]} Nc4 {[%emt 0:00:01]} 30. Rxb4 {[%emt 0:01:46]} Qa8 {[%emt 0:00:02]} 31. a4 {[%emt 0:04:48]} Bxc5 {[%emt 0:00:35]} 32. dxc5 {[%emt 0:00:02]} Rxa4 {[%emt 0:01:18]} 33. Rxa4 {[%emt 0:01:15]} Qxa4 {[%emt 0:00:02]} 34. Qd4 {[%emt 0:02:25]} Ra8 {[%emt 0:03:02]} 35. Bg5 {[%emt 0:00:49]} Qa7 {[%emt 0:01:33]} 36. Rb1 {[%emt 0:00:41]} h6 {[%emt 0:00:22]} 37. Bf4 {[%emt 0:00:49]} Rc8 {[%emt 0:00:23]} 38. Ra1 {[%emt 0:00:56]} Qxc5 {[%emt 0:02:32]} 39. Qxc5 {[%emt 0:00:05]} Rxc5 {[%emt 0:00:03]} 40. h4 {[%emt 0:00:14]} Rc7 {[%emt 0:00:31]} 41. Kg2 {[%emt 0:00:28]} h5 {[%emt 0:00:33]} 42. Kf3 {[%emt 0:01:01]} Rb7 {[%emt 0:00:20]} 43. Ra2 {[%emt 0:00:37]} Rb3+ {[%emt 0:00:13]} 44. Ke2 {[%emt 0:00:05]} Kh7 {[%emt 0:00:24]} 45. Ra7 {[%emt 0:00:36]} Kg6 {[%emt 0:00:02]} 46. Rd7 {[%emt 0:00:16]} Rb2+ {[%emt 0:00:47]} 47. Kf3 {[%emt 0:00:07]} Rb1 {[%emt 0:00:20]} 48. Ke2 {[%emt 0:00:06]} Ra1 {[%emt 0:00:27]} 49. Re7 {[%emt 0:00:31]} Ra2+ {[%emt 0:00:11]} 50. Kf3 {[%emt 0:00:06]} Ra4 {[%emt 0:01:55]} 51. Rb7 {[%emt 0:00:28]} Ra3+ {[%emt 0:00:56]} 52. Ke2 {[%emt 0:00:08]} Rc3 {[%emt 0:00:34]} 53. Rb4 {[%emt 0:02:02]} Rc2+ {[%emt 0:00:24]} 54. Kf3 {[%emt 0:00:13]} Nb2 {[%emt 0:00:20]} 55. Be3 {[%emt 0:00:45]} Nd3 {[%emt 0:00:25]} 56. Rb7 {[%emt 0:00:39]} Nxe5+ {[%emt 0:00:07]} 57. Kg2 {[%emt 0:00:10]} Ng4 {[%emt 0:00:12]} 58. Bd4 {[%emt 0:00:17]} e5 {[%emt 0:00:45]} 59. Rb2 {[%emt 0:00:22]} Ne3+ {[%emt 0:00:35]} 60. Kf3 {[%emt 0:00:18]} exd4 {[%emt 0:00:23]} 61. Rb6+ {[%emt 0:00:12]} Kf5 {[%emt 0:00:45]} 62. fxe3 {[%emt 0:00:07]} Rc3 {[%emt 0:00:11]} 63. Rd6 {[%emt 0:00:25]} Rxe3+ {[%emt 0:01:28]} 64. Kf2 {[%emt 0:00:05]} Re5 {[%emt 0:00:37]} 65. Rd7 {[%emt 0:00:09]} Ke4 {[%emt 0:00:59]} 66. Rxf7 {[%emt 0:00:14]} Rf5+ {[%emt 0:00:06]} 0-1

[Event "SixDays IM March 2024"]
[Site "Budapest"]
[Date "2024.04.01"]
[Round "4.3"]
[White "Horvath, David"]
[Black "Toth-Goczo, Melinda"]
[Result "1/2-1/2"]
[ECO "B06"]
[WhiteElo "2330"]
[BlackElo "2189"]
[Annotator "RC"]
[PlyCount "29"]
[EventDate "2024.03.26"]
[EventType "tourn"]
[EventCountry "HUN"]
[SourceTitle "playchess.com"]
[Source "ChessBase"]
[SourceQuality "1"]
[TimeControl "5400+30"]

1. d4 {[%emt 0:00:03]} g6 {[%emt 0:04:04]} 2. e4 {[%emt 0:00:09]} Bg7 {[%emt 0:05:26]} 3. Nc3 {[%emt 0:01:31]} d6 {[%emt 0:03:38]} 4. Be3 {[%emt 0:00:42]} c6 {[%emt 0:01:57]} 5. a4 {[%emt 0:00:04]} a5 {[%emt 0:02:06]} 6. Nf3 {[%emt 0:04:49]} Nd7 {[%emt 0:07:40]} 7. Qd2 {[%emt 0:07:11]} Qc7 {[%emt 0:01:09]} 8. Be2 {[%emt 0:11:46]} Ngf6 {[%emt 0:10:49]} 9. h3 {[%emt 0:16:51]} O-O {[%emt 0:03:00]} 10. O-O {[%emt 0:28:08]} e5 {[%emt 0:01:34]} 11. dxe5 {[%emt 0:00:35]} dxe5 {[%emt 0:02:35]} 12. Rfd1 {[%emt 0:00:15]} Re8 {[%emt 0:03:42]} 13. Bc4 {[%emt 0:05:54]} Bf8 {[%emt 0:16:51]} 14. Ng5 {[%emt 0:10:55]} Re7 {[%emt 0:00:19]} 15. Qe2 {[%emt 0:02:34]} 1/2-1/2